[Event "*** MasterClass Titled Tuesday Blitz"]
[Site "Chess.com"]
[Date "2017.12.12"]
[Round "1"]
[White "Veiso"]
[Black "Keaton87"]
[Result "0-1"]
[WhiteElo "2228"]
[BlackElo "2517"]
[TimeControl "180+2"]
[EndTime "13:11:14 PST"]
[Termination "Keaton87 won by checkmate"]

1. d4 {[%clk 0:02:56.3]} 1... Nf6 {[%clk 0:02:59.8]} 2. c4 {[%clk 0:02:55.9]}
2... g6 {[%clk 0:03:00.5]} 3. Nc3 {[%clk 0:02:55.6]} 3... Bg7 {[%clk 0:03:01.3]}
4. e4 {[%clk 0:02:56.8]} 4... O-O {[%clk 0:03:02.3]} 5. Be2 {[%clk 0:02:57.6]}
5... c6 {[%clk 0:03:02.8]} 6. Nf3 {[%clk 0:02:51]} 6... d5 {[%clk 0:03:03.4]} 7.
e5 {[%clk 0:02:20.3]} 7... Ne4 {[%clk 0:03:03.9]} 8. O-O {[%clk 0:02:18.7]} 8...
Nxc3 {[%clk 0:03:04.4]} 9. bxc3 {[%clk 0:02:19.1]} 9... dxc4 {[%clk 0:03:05.3]}
10. Bxc4 {[%clk 0:02:18.8]} 10... c5 {[%clk 0:03:06.5]} 11. Be3 {[%clk
0:02:18.4]} 11... cxd4 {[%clk 0:03:06.6]} 12. cxd4 {[%clk 0:02:18.5]} 12... Nc6
{[%clk 0:03:07.6]} 13. h3 {[%clk 0:02:17.2]} 13... Na5 {[%clk 0:03:07.2]} 14.
Be2 {[%clk 0:02:13.1]} 14... Be6 {[%clk 0:03:07.6]} 15. Nd2 {[%clk 0:02:00]}
15... Bd5 {[%clk 0:03:05.8]} 16. Bf3 {[%clk 0:01:57.8]} 16... Rc8 {[%clk
0:03:05.6]} 17. Qa4 {[%clk 0:01:49.5]} 17... b6 {[%clk 0:02:56.6]} 18. Rfc1
{[%clk 0:01:37.9]} 18... Bxf3 {[%clk 0:02:40.5]} 19. Nxf3 {[%clk 0:01:34.1]}
19... Qd5 {[%clk 0:02:41.4]} 20. Qa3 {[%clk 0:01:20.9]} 20... e6 {[%clk
0:02:27.5]} 21. Rxc8 {[%clk 0:01:16.3]} 21... Rxc8 {[%clk 0:02:27.7]} 22. Rc1
{[%clk 0:01:17.1]} 22... Rxc1+ {[%clk 0:02:27.7]} 23. Qxc1 {[%clk 0:01:14.4]}
23... Qc4 {[%clk 0:02:22.3]} 24. Qd2 {[%clk 0:00:55.8]} 24... Nc6 {[%clk
0:02:13.4]} 25. Bh6 {[%clk 0:00:42.2]} 25... Ne7 {[%clk 0:02:11.4]} 26. Bxg7
{[%clk 0:00:36.8]} 26... Kxg7 {[%clk 0:02:13.3]} 27. Qg5 {[%clk 0:00:38.1]}
27... Nd5 {[%clk 0:02:14.3]} 28. h4 {[%clk 0:00:35.3]} 28... h6 {[%clk
0:02:04.5]} 29. Qd2 {[%clk 0:00:33.3]} 29... Qc3 {[%clk 0:02:04.9]} 30. Qe2
{[%clk 0:00:24.6]} 30... Qc1+ {[%clk 0:01:54]} 31. Kh2 {[%clk 0:00:25]} 31...
Qf4+ {[%clk 0:01:55.5]} 32. g3 {[%clk 0:00:22.3]} 32... Qg4 {[%clk 0:01:52.2]}
33. Qd3 {[%clk 0:00:21.4]} 33... Nb4 {[%clk 0:01:50.9]} 34. Qb3 {[%clk
0:00:21.9]} 34... Nxa2 {[%clk 0:01:47.8]} 35. Kg2 {[%clk 0:00:21.4]} 35... Nc1
{[%clk 0:01:40.2]} 36. Qc2 {[%clk 0:00:21.1]} 36... b5 {[%clk 0:01:30.9]} 37.
Qxc1 {[%clk 0:00:20.5]} 37... Qe4 {[%clk 0:01:32.5]} 38. Qc5 {[%clk 0:00:19.3]}
38... a6 {[%clk 0:01:31.9]} 39. Qb6 {[%clk 0:00:16.4]} 39... Qa8 {[%clk
0:01:29.6]} 40. d5 {[%clk 0:00:11.7]} 40... Qxd5 {[%clk 0:01:20.1]} 41. Qxa6
{[%clk 0:00:12.6]} 41... b4 {[%clk 0:01:21.7]} 42. Qe2 {[%clk 0:00:06.6]} 42...
b3 {[%clk 0:01:22.8]} 43. Kh2 {[%clk 0:00:07.4]} 43... Qb7 {[%clk 0:01:17]} 44.
Nd2 {[%clk 0:00:06.5]} 44... b2 {[%clk 0:01:18.3]} 45. Qd3 {[%clk 0:00:07.7]}
45... Qb6 {[%clk 0:01:13.9]} 46. Kg2 {[%clk 0:00:07.6]} 46... Qc6+ {[%clk
0:01:15.2]} 47. Kh2 {[%clk 0:00:08.2]} 47... Qc1 {[%clk 0:01:16.2]} 48. Kg2
{[%clk 0:00:08.1]} 48... Qc6+ {[%clk 0:01:15.7]} 49. Kh2 {[%clk 0:00:08.3]}
49... Qc1 {[%clk 0:01:17.6]} 50. Kg2 {[%clk 0:00:09]} 50... Qd1 {[%clk
0:01:17.7]} 51. Kh2 {[%clk 0:00:06.6]} 51... b1=Q {[%clk 0:01:16.6]} 52. Qxb1
{[%clk 0:00:07.7]} 52... Qxd2 {[%clk 0:01:17.7]} 53. Kg2 {[%clk 0:00:08.6]}
53... Qd5+ {[%clk 0:01:17.9]} 54. Kh2 {[%clk 0:00:08.3]} 54... Qxe5 {[%clk
0:01:19.1]} 55. Qd3 {[%clk 0:00:09.8]} 55... Qb2 {[%clk 0:01:19.5]} 56. Kg2
{[%clk 0:00:10.7]} 56... e5 {[%clk 0:01:20.7]} 57. Qe4 {[%clk 0:00:09.5]} 57...
Qd4 {[%clk 0:01:17.2]} 58. Qb7 {[%clk 0:00:10.4]} 58... h5 {[%clk 0:01:16.6]}
59. Qe7 {[%clk 0:00:11.2]} 59... Qd5+ {[%clk 0:01:15.8]} 60. Kg1 {[%clk
0:00:12]} 60... Qe4 {[%clk 0:01:13.8]} 61. Qa3 {[%clk 0:00:12.4]} 61... Qd4
{[%clk 0:01:13.2]} 62. Qe7 {[%clk 0:00:10.6]} 62... e4 {[%clk 0:01:13.3]} 63.
Kg2 {[%clk 0:00:11.2]} 63... Qd5 {[%clk 0:01:13.2]} 64. Kg1 {[%clk 0:00:11.6]}
64... Kh7 {[%clk 0:01:12.2]} 65. Kf1 {[%clk 0:00:09.5]} 65... Kg8 {[%clk
0:01:12.9]} 66. Kg1 {[%clk 0:00:10.6]} 66... Qd4 {[%clk 0:01:12.5]} 67. Kg2
{[%clk 0:00:09.3]} 67... f5 {[%clk 0:01:12.1]} 68. Qe6+ {[%clk 0:00:07.2]} 68...
Kh7 {[%clk 0:01:12.9]} 69. Qe7+ {[%clk 0:00:08.1]} 69... Qg7 {[%clk 0:01:13.8]}
70. Qe6 {[%clk 0:00:09.3]} 70... Qb7 {[%clk 0:01:14.8]} 71. Kg1 {[%clk
0:00:09.8]} 71... Kg7 {[%clk 0:01:15.3]} 72. Qe5+ {[%clk 0:00:10.5]} 72... Kf7
{[%clk 0:01:16.5]} 73. Kf1 {[%clk 0:00:11]} 73... Qe7 {[%clk 0:01:15.3]} 74. Qh8
{[%clk 0:00:10.4]} 74... Qd6 {[%clk 0:01:11.9]} 75. Qh7+ {[%clk 0:00:10.5]}
75... Ke8 {[%clk 0:01:13.2]} 76. Qh8+ {[%clk 0:00:09.3]} 76... Kd7 {[%clk
0:01:14.5]} 77. Qg7+ {[%clk 0:00:09.4]} 77... Kc6 {[%clk 0:01:15.6]} 78. Qc3+
{[%clk 0:00:10.5]} 78... Kb5 {[%clk 0:01:16.6]} 79. Qe3 {[%clk 0:00:11.3]} 79...
Qd3+ {[%clk 0:01:15.8]} 80. Qxd3+ {[%clk 0:00:08.7]} 80... exd3 {[%clk
0:01:17.7]} 81. Ke1 {[%clk 0:00:10.6]} 81... Kc4 {[%clk 0:01:18.2]} 82. Kd2
{[%clk 0:00:12.5]} 82... Kd4 {[%clk 0:01:19.4]} 83. f3 {[%clk 0:00:14]} 83...
Kc4 {[%clk 0:01:20.6]} 84. Kd1 {[%clk 0:00:08.5]} 84... Kc3 {[%clk 0:01:21.4]}
85. Kc1 {[%clk 0:00:09.9]} 85... d2+ {[%clk 0:01:21.5]} 86. Kd1 {[%clk 0:00:11]}
86... Kd3 {[%clk 0:01:22.8]} 87. g4 {[%clk 0:00:09.6]} 87... hxg4 {[%clk
0:01:19]} 88. fxg4 {[%clk 0:00:10.7]} 88... fxg4 {[%clk 0:01:19.9]} 89. h5
{[%clk 0:00:12]} 89... g3 {[%clk 0:01:21.2]} 90. hxg6 {[%clk 0:00:12.1]} 90...
g2 {[%clk 0:01:22.6]} 91. g7 {[%clk 0:00:13.9]} 91... g1=Q# {[%clk 0:01:24.4]}
0-1

[Event "*** MasterClass Titled Tuesday Blitz"]
[Site "Chess.com"]
[Date "2017.12.12"]
[Round "1"]
[White "chess2matters"]
[Black "tigra"]
[Result "0-1"]
[WhiteElo "2331"]
[BlackElo "2647"]
[TimeControl "180+2"]
[EndTime "13:12:25 PST"]
[Termination "tigra won by resignation"]

1. d4 {[%clk 0:02:57.6]} 1... Nf6 {[%clk 0:03:00.4]} 2. c4 {[%clk 0:02:58]} 2...
g6 {[%clk 0:03:01.6]} 3. g3 {[%clk 0:02:56]} 3... d5 {[%clk 0:03:01.9]} 4. cxd5
{[%clk 0:02:56]} 4... Bg7 {[%clk 0:03:02.6]} 5. Nf3 {[%clk 0:02:55.9]} 5... O-O
{[%clk 0:03:02.5]} 6. Bg2 {[%clk 0:02:56.9]} 6... Nxd5 {[%clk 0:03:04.1]} 7. O-O
{[%clk 0:02:57.5]} 7... Nb6 {[%clk 0:03:05.7]} 8. Nc3 {[%clk 0:02:56.8]} 8...
Nc6 {[%clk 0:03:02.4]} 9. e3 {[%clk 0:02:57.5]} 9... Re8 {[%clk 0:03:02.3]} 10.
Qe2 {[%clk 0:02:20.6]} 10... e5 {[%clk 0:02:57.8]} 11. dxe5 {[%clk 0:02:19.4]}
11... Nxe5 {[%clk 0:02:58.8]} 12. Nxe5 {[%clk 0:02:20.8]} 12... Bxe5 {[%clk
0:02:59.5]} 13. Rd1 {[%clk 0:02:20.3]} 13... Qe7 {[%clk 0:02:59.4]} 14. Bd2
{[%clk 0:02:18.7]} 14... c6 {[%clk 0:02:59.3]} 15. Rac1 {[%clk 0:02:17]} 15...
Be6 {[%clk 0:02:57.3]} 16. b3 {[%clk 0:02:16.2]} 16... h5 {[%clk 0:02:47.2]} 17.
h3 {[%clk 0:02:08.8]} 17... a5 {[%clk 0:02:43.9]} 18. Ne4 {[%clk 0:01:33.8]}
18... a4 {[%clk 0:02:37.7]} 19. Nc5 {[%clk 0:01:34.5]} 19... axb3 {[%clk
0:02:34.8]} 20. axb3 {[%clk 0:01:34.5]} 20... Bc8 {[%clk 0:02:12.3]} 21. Bb4
{[%clk 0:01:20.6]} 21... h4 {[%clk 0:02:12.9]} 22. g4 {[%clk 0:01:16.9]} 22...
Bb8 {[%clk 0:02:05.7]} 23. Na6 {[%clk 0:01:10.4]} 23... Qf6 {[%clk 0:01:49.7]}
24. Nxb8 {[%clk 0:01:10.9]} 24... Rxb8 {[%clk 0:01:51.3]} 25. Bd6 {[%clk
0:01:06.1]} 25... Ra8 {[%clk 0:01:51.6]} 26. b4 {[%clk 0:00:55.2]} 26... Be6
{[%clk 0:01:50.1]} 27. b5 {[%clk 0:00:53.5]} 27... Bd5 {[%clk 0:01:51]} 28. Bc5
{[%clk 0:00:45.3]} 28... Bxg2 {[%clk 0:01:50.4]} 29. Kxg2 {[%clk 0:00:46.9]}
29... Nd5 {[%clk 0:01:51.5]} 30. Qf3 {[%clk 0:00:40.4]} 30... Qe6 {[%clk
0:01:48.2]} 31. bxc6 {[%clk 0:00:39.8]} 31... bxc6 {[%clk 0:01:50.1]} 32. Bd4
{[%clk 0:00:38.6]} 32... Ra2 {[%clk 0:01:50]} 33. Kg1 {[%clk 0:00:34.5]} 33...
Ra4 {[%clk 0:01:32.9]} 34. Rb1 {[%clk 0:00:29]} 34... Qe7 {[%clk 0:01:27.2]} 35.
Rdc1 {[%clk 0:00:27.7]} 35... Qd7 {[%clk 0:01:22]} 36. Rc2 {[%clk 0:00:23.1]}
36... Kf8 {[%clk 0:01:10.9]} 37. Rbc1 {[%clk 0:00:23.7]} 37... Re6 {[%clk
0:01:10.4]} 38. Bc5+ {[%clk 0:00:19]} 38... Kg7 {[%clk 0:01:10.5]} 39. Bd4+
{[%clk 0:00:20.3]} 39... Kh7 {[%clk 0:01:10.1]} 40. Bb2 {[%clk 0:00:21.5]} 40...
Kg8 {[%clk 0:01:05.4]} 41. Bd4 {[%clk 0:00:21.9]} 41... Kf8 {[%clk 0:01:04.5]}
42. Rb1 {[%clk 0:00:22.6]} 42... Ra8 {[%clk 0:00:59.8]} 43. Rcb2 {[%clk
0:00:22.8]} 43... Qe8 {[%clk 0:00:45.1]} 44. Rb7 {[%clk 0:00:22.5]} 44... Kg8
{[%clk 0:00:45.7]} 45. Rc1 {[%clk 0:00:19.6]} 45... Ra4 {[%clk 0:00:44]} 46.
Rcb1 {[%clk 0:00:18.7]} 46... Ra8 {[%clk 0:00:44.8]} 47. Rc1 {[%clk 0:00:18.9]}
47... Rd8 {[%clk 0:00:45.9]} 48. Rcb1 {[%clk 0:00:19.9]} 48... Ra8 {[%clk
0:00:33.1]} 49. Ba7 {[%clk 0:00:19.5]} 49... Nc3 {[%clk 0:00:26.5]} 50. Rb8
{[%clk 0:00:19]} 50... Nxb1 {[%clk 0:00:25.4]} 51. Rxe8+ {[%clk 0:00:19.5]}
51... Raxe8 {[%clk 0:00:24.2]} 52. Bd4 {[%clk 0:00:21]} 52... Nd2 {[%clk
0:00:24.6]} 53. Qf4 {[%clk 0:00:21.9]} 53... f6 {[%clk 0:00:13]} 54. Kg2 {[%clk
0:00:21.5]} 54... Ne4 {[%clk 0:00:12.8]} 55. f3 {[%clk 0:00:19.9]} 55... Nd6
{[%clk 0:00:10.5]} 56. g5 {[%clk 0:00:20.3]} 56... fxg5 {[%clk 0:00:10.3]} 57.
Qxg5 {[%clk 0:00:21.7]} 57... Nf5 {[%clk 0:00:11.6]} 58. Bc5 {[%clk 0:00:18.7]}
58... Kf7 {[%clk 0:00:11.9]} 59. e4 {[%clk 0:00:17.1]} 59... Ng7 {[%clk
0:00:10.8]} 60. Qxh4 {[%clk 0:00:17.8]} 60... Ra8 {[%clk 0:00:09.5]} 61. Qf4+
{[%clk 0:00:18.5]} 61... Kg8 {[%clk 0:00:10.5]} 62. Qc7 {[%clk 0:00:19.3]} 62...
Rae8 {[%clk 0:00:10.3]} 63. Bd4 {[%clk 0:00:20]} 63... R8e7 {[%clk 0:00:11.5]}
64. Qb8+ {[%clk 0:00:20.5]} 64... Ne8 {[%clk 0:00:12.5]} 65. Qb3 {[%clk
0:00:20.1]} 65... Kf7 {[%clk 0:00:13.4]} 66. Qc4 {[%clk 0:00:21.3]} 66... Nd6
{[%clk 0:00:13.7]} 67. Qa2 {[%clk 0:00:21.8]} 67... Nb5 {[%clk 0:00:14.7]} 68.
Ba1 {[%clk 0:00:22.8]} 68... Ra7 {[%clk 0:00:15.2]} 69. Qb2 {[%clk 0:00:23.1]}
69... Ke8 {[%clk 0:00:15.5]} 70. Qh8+ {[%clk 0:00:23.9]} 70... Kd7 {[%clk
0:00:16.9]} 71. Bb2 {[%clk 0:00:25.1]} 71... Rd6 {[%clk 0:00:17.5]} 72. Qg7+
{[%clk 0:00:26]} 72... Kc8 {[%clk 0:00:18.5]} 73. Qf8+ {[%clk 0:00:27.3]} 73...
Rd8 {[%clk 0:00:19.3]} 74. Qc5 {[%clk 0:00:27.8]} 74... Rd2+ {[%clk 0:00:19.2]}
75. Kg3 {[%clk 0:00:28.2]} 75... Rxb2 {[%clk 0:00:20.3]} 76. Qxc6+ {[%clk
0:00:29.6]} 76... Nc7 {[%clk 0:00:21.1]} 77. Qxg6 {[%clk 0:00:30.4]} 77... Raa2
{[%clk 0:00:21.6]} 78. Qg8+ {[%clk 0:00:31.3]} 78... Kd7 {[%clk 0:00:22.4]} 79.
Qf7+ {[%clk 0:00:32.2]} 79... Kc6 {[%clk 0:00:23.3]} 80. e5 {[%clk 0:00:32.8]}
80... Rg2+ {[%clk 0:00:23.6]} 81. Kf4 {[%clk 0:00:33.3]} 81... Nd5+ {[%clk
0:00:24]} 82. Kf5 {[%clk 0:00:34.6]} 82... Ra5 {[%clk 0:00:23.4]} 83. Qe8+
{[%clk 0:00:34.9]} 83... Kc5 {[%clk 0:00:24.4]} 84. Qc8+ {[%clk 0:00:35.4]}
84... Kd4 {[%clk 0:00:25.6]} 85. Qd7 {[%clk 0:00:32.8]} 85... Rg3 {[%clk
0:00:23.3]} 86. Ke6 {[%clk 0:00:32.9]} 86... Ra6+ {[%clk 0:00:21.8]} 87. Kf5
{[%clk 0:00:32.6]} 87... Rxf3+ {[%clk 0:00:19.7]} 88. Kg4 {[%clk 0:00:34.2]}
88... Rf4+ {[%clk 0:00:20.1]} 89. Kg3 {[%clk 0:00:35.5]} 89... Rg6+ {[%clk
0:00:20.3]} 90. Kh2 {[%clk 0:00:35.4]} 90... Rb6 {[%clk 0:00:20.4]} 91. e6
{[%clk 0:00:34.8]} 91... Re4 {[%clk 0:00:21.5]} 92. Kg3 {[%clk 0:00:32.2]} 92...
Rexe6 {[%clk 0:00:22]} 93. Qg7+ {[%clk 0:00:31.4]} 93... Rf6 {[%clk 0:00:23]}
94. h4 {[%clk 0:00:30]} 94... Rb3+ {[%clk 0:00:23.4]} 95. Kg4 {[%clk 0:00:30.6]}
95... Rf3 {[%clk 0:00:23.2]} 96. h5 {[%clk 0:00:29.7]} 96... Ne3+ {[%clk
0:00:23.5]} 97. Kh4 {[%clk 0:00:31.1]} 97... Nf5+ {[%clk 0:00:23.9]} 0-1

[Event "*** MasterClass Titled Tuesday Blitz"]
[Site "Chess.com"]
[Date "2017.12.12"]
[Round "1"]
[White "PinguInTheCity"]
[Black "gammagramma"]
[Result "0-1"]
[WhiteElo "1989"]
[BlackElo "2444"]
[TimeControl "180+2"]
[EndTime "13:12:30 PST"]
[Termination "gammagramma won on time"]

1. d4 {[%clk 0:03:01.9]} 1... d5 {[%clk 0:02:59]} 2. Nf3 {[%clk 0:02:55.2]} 2...
c5 {[%clk 0:02:58.2]} 3. Bf4 {[%clk 0:02:55.2]} 3... cxd4 {[%clk 0:02:58.4]} 4.
Nxd4 {[%clk 0:02:53.9]} 4... a6 {[%clk 0:02:55.2]} 5. Nc3 {[%clk 0:02:52.9]}
5... Nf6 {[%clk 0:02:55.5]} 6. e3 {[%clk 0:02:53.3]} 6... Qb6 {[%clk 0:02:51.5]}
7. Qd2 {[%clk 0:02:48.7]} 7... Nc6 {[%clk 0:02:49.7]} 8. Nxc6 {[%clk 0:02:43.7]}
8... bxc6 {[%clk 0:02:50.5]} 9. Na4 {[%clk 0:02:44.4]} 9... Qa7 {[%clk
0:02:48.3]} 10. Qc3 {[%clk 0:02:44.1]} 10... Bd7 {[%clk 0:02:29.2]} 11. Nc5
{[%clk 0:02:42.1]} 11... e6 {[%clk 0:02:25.2]} 12. Nxd7 {[%clk 0:02:42.1]} 12...
Kxd7 {[%clk 0:02:26.4]} 13. Bd3 {[%clk 0:02:42.4]} 13... Qc5 {[%clk 0:02:25]}
14. Qd2 {[%clk 0:02:38.9]} 14... Be7 {[%clk 0:02:12.1]} 15. O-O {[%clk
0:02:36.5]} 15... Rhd8 {[%clk 0:02:13]} 16. a3 {[%clk 0:02:33.5]} 16... Ke8
{[%clk 0:02:10.9]} 17. b4 {[%clk 0:02:30.8]} 17... Qa7 {[%clk 0:02:11.3]} 18.
Qe2 {[%clk 0:02:30.7]} 18... Kf8 {[%clk 0:02:09.5]} 19. c4 {[%clk 0:02:27.4]}
19... a5 {[%clk 0:02:01.9]} 20. Be5 {[%clk 0:02:16.5]} 20... Kg8 {[%clk
0:01:59.6]} 21. c5 {[%clk 0:02:13.4]} 21... Nd7 {[%clk 0:01:57]} 22. Bb2 {[%clk
0:02:05.8]} 22... Bf6 {[%clk 0:01:27.7]} 23. Qc2 {[%clk 0:02:01]} 23... g6
{[%clk 0:01:20.9]} 24. h3 {[%clk 0:01:50.8]} 24... Rdb8 {[%clk 0:01:08.7]} 25.
Bxf6 {[%clk 0:01:39.4]} 25... Nxf6 {[%clk 0:01:09.7]} 26. Qc3 {[%clk 0:01:38.4]}
26... Nd7 {[%clk 0:01:08]} 27. Rfb1 {[%clk 0:01:36.6]} 27... Qc7 {[%clk
0:01:06]} 28. Rc1 {[%clk 0:01:26.5]} 28... Qe5 {[%clk 0:01:03.4]} 29. Rab1
{[%clk 0:01:08.3]} 29... Qxc3 {[%clk 0:01:03]} 30. Rxc3 {[%clk 0:01:08.8]} 30...
axb4 {[%clk 0:01:03.8]} 31. Rxb4 {[%clk 0:00:53.3]} 31... Rxb4 {[%clk
0:01:01.4]} 32. axb4 {[%clk 0:00:55.2]} 32... Rb8 {[%clk 0:01:02.2]} 33. b5
{[%clk 0:00:30.9]} 33... cxb5 {[%clk 0:01:03.2]} 34. c6 {[%clk 0:00:30.9]} 34...
Ne5 {[%clk 0:01:04.5]} 35. Bxb5 {[%clk 0:00:24.2]} 35... Rc8 {[%clk 0:01:00.5]}
36. f4 {[%clk 0:00:13]} 36... Nc4 {[%clk 0:01:00.2]} 37. Kf1 {[%clk 0:00:11.6]}
37... Rc7 {[%clk 0:00:57.1]} 38. Ke2 {[%clk 0:00:11.3]} 38... Nd6 {[%clk
0:00:56.1]} 39. Ba4 {[%clk 0:00:12.4]} 39... Kf8 {[%clk 0:00:57]} 40. Rb3 {[%clk
0:00:12.8]} 40... h5 {[%clk 0:00:57.4]} 41. Rb8+ {[%clk 0:00:13.7]} 41... Ke7
{[%clk 0:00:58.4]} 42. Ra8 {[%clk 0:00:14.7]} 42... Ne4 {[%clk 0:00:59.2]} 43.
Ke1 {[%clk 0:00:14.7]} 43... h4 {[%clk 0:01:00.1]} 44. Rb8 {[%clk 0:00:12.8]}
44... Nc3 {[%clk 0:01:00.6]} 45. Bb5 {[%clk 0:00:05.3]} 45... Nxb5 {[%clk
0:01:01]} 46. Rxb5 {[%clk 0:00:07.2]} 46... Rxc6 {[%clk 0:01:02.7]} 47. Kf2
{[%clk 0:00:08.8]} 47... Rc2+ {[%clk 0:01:03.7]} 48. Kf3 {[%clk 0:00:09.8]}
48... Rc3 {[%clk 0:01:03.5]} 49. Kf2 {[%clk 0:00:10.1]} 49... Kf6 {[%clk
0:01:04.5]} 50. Rb7 {[%clk 0:00:11]} 50... Ra3 {[%clk 0:01:04.4]} 51. Ke2 {[%clk
0:00:11.5]} 51... Kf5 {[%clk 0:01:02.7]} 52. Kf3 {[%clk 0:00:11.1]} 52... f6
{[%clk 0:00:56.8]} 53. Rb5 {[%clk 0:00:11.8]} 53... g5 {[%clk 0:00:45.9]} 54.
fxg5 {[%clk 0:00:12.7]} 54... Kxg5 {[%clk 0:00:46.5]} 55. Kf2 {[%clk 0:00:12.7]}
55... Kf5 {[%clk 0:00:44.6]} 56. Rb4 {[%clk 0:00:11.4]} 56... Kg5 {[%clk
0:00:42.2]} 57. Rg4+ {[%clk 0:00:11.1]} 57... Kh5 {[%clk 0:00:42.9]} 58. Rg8
{[%clk 0:00:11.5]} 58... e5 {[%clk 0:00:43.9]} 59. Rh8+ {[%clk 0:00:10.7]} 59...
Kg5 {[%clk 0:00:44.4]} 60. Rd8 {[%clk 0:00:11.7]} 60... Ra2+ {[%clk 0:00:42]}
61. Kf1 {[%clk 0:00:09.6]} 61... Rd2 {[%clk 0:00:42.7]} 62. Rg8+ {[%clk
0:00:08]} 62... Kf5 {[%clk 0:00:39]} 63. Rg4 {[%clk 0:00:09.9]} 63... d4 {[%clk
0:00:40.4]} 64. exd4 {[%clk 0:00:05.1]} 64... Rxd4 {[%clk 0:00:40.4]} 65. Rg8
{[%clk 0:00:04.3]} 65... Ke4 {[%clk 0:00:40.9]} 66. Ke2 {[%clk 0:00:05.1]} 66...
f5 {[%clk 0:00:39.8]} 67. Rh8 {[%clk 0:00:06.5]} 67... Kd5 {[%clk 0:00:28.1]}
68. Rd8+ {[%clk 0:00:06.5]} 68... Ke6 {[%clk 0:00:26.2]} 69. Rh8 {[%clk
0:00:07.7]} 69... Ra4 {[%clk 0:00:26.6]} 70. Rh6+ {[%clk 0:00:07.4]} 70... Kd5
{[%clk 0:00:27.7]} 71. Rh5 {[%clk 0:00:08.4]} 71... Ra2+ {[%clk 0:00:26.7]} 72.
Kf1 {[%clk 0:00:08.9]} 72... Ke4 {[%clk 0:00:25.3]} 73. Kg1 {[%clk 0:00:08]}
73... Kf4 {[%clk 0:00:20]} 74. Kh2 {[%clk 0:00:05.3]} 74... e4 {[%clk
0:00:21.3]} 75. Rxh4+ {[%clk 0:00:06.2]} 75... Ke3 {[%clk 0:00:22.7]} 76. Kg3
{[%clk 0:00:06.9]} 76... Ra8 {[%clk 0:00:20.9]} 77. Rh7 {[%clk 0:00:06.4]} 77...
f4+ {[%clk 0:00:21.8]} 78. Kh2 {[%clk 0:00:07.5]} 78... Ra2 {[%clk 0:00:23.1]}
79. h4 {[%clk 0:00:08.8]} 79... f3 {[%clk 0:00:24.3]} 80. Rg7 {[%clk 0:00:07.9]}
80... f2 {[%clk 0:00:24.1]} 81. Rf7 {[%clk 0:00:09]} 81... Ra1 {[%clk
0:00:25.2]} 82. g4 {[%clk 0:00:08.2]} 82... f1=Q {[%clk 0:00:25.2]} 0-1